bitfinex/quotes_SOLUSD_20250717
["timestamp","ask_amount","ask_price","bid_price","bid_amount"]
[1752747957530,29.44,176.26,176.25,14.09527199]
[1752747957826,29.44,176.28,176.25,14.09527199]
[1752747958049,29.44,176.28,176.26,8.42151313]
[1752747958252,0.72,176.27,176.21,0.75]
[1752747958549,26.0,176.23,176.21,0.1]
[1752747958749,55.3461971,176.22,176.21,0.1]
[1752747958960,25.9261971,176.22,176.21,0.1]
[1752747959138,30.26,176.22,176.21,0.1]
[1752747959450,0.72,176.22,176.21,0.1]
[1752747959632,30.26,176.22,176.21,0.1]
[1752747961957,55.4661971,176.22,176.21,0.1]
[1752747962131,61.14092187,176.22,176.21,0.1]
[1752747962334,55.4661971,176.22,176.21,0.1]
[1752747962844,61.14092187,176.22,176.21,0.1]
[1752747963041,47.04468397,176.22,176.21,0.1]
[1752747963250,56.26,176.22,176.21,0.1]
[1752747963424,55.54,176.22,176.21,0.1]
[1752747963627,81.4661971,176.22,176.21,0.1]
[1752747964046,29.54,176.22,176.21,0.1]
[1752747964249,9.14151313,176.28,176.21,14.19655994]
[1752747964554,29.56,176.27,176.23,8.42151313]
[1752747965059,30.28,176.27,176.23,8.42151313]
[1752747965240,30.78,176.27,176.23,8.42151313]
[1752747965437,30.28,176.27,176.23,8.42151313]
[1752747965636,29.56,176.27,176.26,8.42151313]
[1752747966549,29.56,176.27,176.24,6.32401294]
[1752747966748,29.56,176.27,176.26,8.42151313]
[1752747966957,0.72,176.32,176.26,9.07151313]
[1752747967135,29.56,176.31,176.29,8.42151313]
[1752747967337,29.56,176.31,176.3,8.42151313]
[1752747967852,29.56,176.33,176.3,8.42151313]
[1752747968339,30.22,176.33,176.28,5.67272016]
[1752747968536,30.22,176.33,176.31,8.42151313]
[1752747968732,29.56,176.33,176.31,8.42151313]
[1752747969753,29.56,176.33,176.32,8.42151313]
[1752747969953,29.56,176.33,176.32,0.7]
[1752747970270,29.54,176.35,176.32,9.12151313]
[1752747970460,29.54,176.35,176.34,8.42151313]
[1752747970665,29.54,176.35,176.3,0.7]
[1752747970856,29.54,176.35,176.34,8.42151313]
[1752747971161,30.2,176.35,176.33,8.42151313]
[1752747972164,29.54,176.35,176.33,8.42151313]
[1752747972747,0.66,176.34,176.31,8.42151313]
[1752747972943,0.66,176.34,176.32,8.42151313]
[1752747973149,0.66,176.34,176.3,5.67214974]
[1752747973366,29.54,176.35,176.33,8.42151313]
[1752747973566,29.54,176.35,176.31,0.7]
[1752747973754,29.54,176.35,176.34,8.42151313]
[1752747974872,0.06,176.39,176.34,14.79237623]
[1752747975175,0.06,176.39,176.38,8.42151313]
[1752747975564,0.06,176.39,176.38,9.12151313]
[1752747975873,0.06,176.39,176.38,14.79109017]
[1752747979675,29.52,176.44,176.38,37.38654592]
[1752747979862,0.06,176.47,176.43,8.42151313]
[1752747980058,0.06,176.47,176.46,8.42151313]
[1752747981274,0.06,176.47,176.44,5.66764905]
[1752747981495,0.06,176.47,176.46,8.42151313]
[1752747983175,0.72,176.47,176.43,8.42151313]
[1752747983474,0.66,176.46,176.44,8.42151313]
[1752747983946,0.06,176.47,176.45,8.42151313]
[1752747984152,0.06,176.47,176.46,8.42151313]
[1752747985369,0.06,176.47,176.45,8.42151313]
[1752747985565,0.66,176.46,176.39,0.7]
[1752747985764,0.66,176.46,176.42,8.42151313]
[1752747985976,0.66,176.45,176.42,8.42151313]
[1752747986159,29.46,176.44,176.42,8.42151313]
[1752747987165,0.66,176.43,176.4,8.42151313]
[1752747987359,0.66,176.43,176.33,29.46]
[1752747987360,0.66,176.43,176.33,102.27787312]
[1752747987659,0.66,176.43,176.35,8.42151313]
[1752747987660,8.42151313,176.41,176.35,8.42151313]
[1752747987862,30.14,176.4,176.35,8.42151313]
[1752747988074,29.48,176.4,176.35,8.42151313]
[1752747988254,0.66,176.39,176.35,8.42151313]
[1752747988461,0.66,176.38,176.35,8.42151313]
[1752747989264,30.14,176.4,176.35,14.09204584]
[1752747989462,0.66,176.39,176.34,5.67076664]
[1752747989675,0.66,176.39,176.35,8.42151313]
[1752747991888,0.66,176.39,176.35,14.09202913]
[1752747992182,29.48,176.4,176.38,8.42151313]
[1752747992692,29.46,176.43,176.4,5.66893424]
[1752747992894,29.46,176.43,176.4,8.42151313]
[1752747993060,0.66,176.42,176.36,6.37022]
[1752747993261,0.66,176.42,176.38,8.42151313]
[1752747993479,0.66,176.41,176.38,8.42151313]
[1752747994184,29.46,176.43,176.38,8.42151313]
[1752747994380,30.12,176.43,176.4,8.42151313]
[1752747994774,30.12,176.43,176.38,0.7]
[1752747994975,30.12,176.43,176.39,8.42151313]
[1752747995173,0.66,176.42,176.39,8.42151313]
[1752747995369,0.66,176.41,176.39,8.42151313]
[1752747995574,0.66,176.4,176.38,8.42151313]
[1752747995775,0.66,176.39,176.36,8.42151313]
[1752747996087,0.66,176.38,176.36,8.42151313]
[1752747996286,29.44,176.39,176.37,8.42151313]
[1752747996957,30.1,176.39,176.36,8.42151313]
[1752747997163,0.67,176.38,176.33,5.67118471]
[1752747997357,0.67,176.37,176.34,8.42151313]
[1752747998376,0.67,176.37,176.35,8.42151313]
[1752747998575,29.44,176.39,176.35,8.42151313]
[1752747998576,30.11,176.39,176.35,8.42151313]
[1752747999375,0.67,176.38,176.35,8.42151313]
[1752747999965,0.67,176.38,176.35,14.09204458]
[1752748000477,29.44,176.39,176.37,8.42151313]
[1752748000680,29.44,176.4,176.38,8.42151313]
[1752748000888,29.44,176.4,176.39,8.42151313]
[1752748001065,29.44,176.4,176.38,8.42151313]
[1752748001267,29.44,176.4,176.37,8.42151313]
[1752748001870,29.44,176.4,176.39,8.42151313]
[1752748002080,29.44,176.4,176.38,8.42151313]
[1752748002887,29.44,176.4,176.38,14.09104667]
[1752748003387,29.44,176.4,176.38,8.42151313]
[1752748004483,29.44,176.4,176.38,14.09108438]
[1752748004885,29.44,176.4,176.38,8.42151313]
[1752748005069,29.44,176.4,176.37,14.09133033]
[1752748005271,0.67,176.39,176.34,5.6708631]
[1752748005580,0.67,176.38,176.35,8.42151313]
[1752748005982,0.67,176.37,176.34,8.42151313]
[1752748006179,30.07,176.37,176.34,8.42151313]
[1752748006498,30.07,176.37,176.33,14.09259274]
[1752748007216,30.07,176.37,176.34,8.42151313]
[1752748007382,30.07,176.37,176.34,14.09223091]
[1752748007881,29.4,176.37,176.34,14.09223091]
[1752748008897,29.4,176.37,176.35,8.42151313]
[1752748009096,29.4,176.37,176.36,8.42151313]
[1752748009604,29.38,176.39,176.36,8.42151313]
[1752748009913,30.05,176.39,176.36,8.42151313]
[1752748010999,30.05,176.39,176.36,14.09171721]
[1752748011587,29.38,176.39,176.36,14.09171721]
[1752748011794,29.38,176.39,176.37,8.42151313]
[1752748013911,29.38,176.39,176.37,14.09140163]
[1752748014210,29.38,176.39,176.38,8.42151313]
[1752748014514,29.44,176.39,176.38,8.42151313]
[1752748016510,0.06,176.39,176.38,14.81109017]
[1752748016712,0.06,176.39,176.38,16.35509017]
[1752748017012,0.06,176.47,176.38,16.35509017]
[1752748017013,0.06,176.47,176.38,71.37644592]
[1752748017311,0.06,176.47,176.46,8.42151313]
[1752748018108,0.06,176.47,176.46,9.14151313]
[1752748018488,0.06,176.47,176.41,26.0]
[1752748018489,0.73,176.47,176.45,8.42151313]
[1752748018692,0.73,176.47,176.44,8.42151313]
[1752748018902,0.73,176.47,176.45,8.42151313]
[1752748019106,0.06,176.47,176.46,8.42151313]
[1752748019690,0.06,176.47,176.46,14.08851981]
[1752748019886,0.73,176.47,176.45,8.42151313]
[1752748020509,0.67,176.46,176.41,5.66861289]
[1752748020701,0.06,176.47,176.45,8.42151313]
[1752748020903,8.42151313,176.46,176.41,8.42151313]
[1752748021108,29.36,176.45,176.41,8.42151313]
[1752748021302,29.36,176.45,176.4,8.42151313]
[1752748021303,0.67,176.44,176.4,8.42151313]
[1752748021505,0.67,176.43,176.4,8.42151313]
[1752748021707,30.03,176.42,176.4,8.42151313]
[1752748022108,30.03,176.42,176.39,8.42151313]
[1752748022301,29.36,176.42,176.4,8.42151313]
[1752748022613,29.36,176.42,176.41,8.42151313]
[1752748022810,29.36,176.42,176.4,8.42151313]
[1752748023414,0.67,176.42,176.39,8.42151313]
[1752748023613,30.03,176.42,176.39,8.42151313]
[1752748023808,29.36,176.42,176.39,8.42151313]
[1752748024013,0.67,176.41,176.39,8.42151313]
[1752748024616,0.67,176.41,176.39,14.090644]
[1752748024816,29.36,176.42,176.39,5.66913087]
[1752748025022,29.36,176.42,176.4,8.42151313]
[1752748025023,30.03,176.42,176.4,8.42151313]
[1752748025210,30.03,176.42,176.39,14.090644]
[1752748025604,30.03,176.42,176.39,5.66913087]
[1752748025901,0.67,176.41,176.36,14.09173313]
[1752748026099,0.67,176.41,176.34,8.42151313]
[1752748026100,8.42151313,176.39,176.34,8.42151313]
[1752748026299,38.43151313,176.38,176.33,5.7010813]
[1752748026500,0.67,176.37,176.33,14.12259443]
[1752748026719,0.67,176.36,176.33,14.12259443]
[1752748027410,0.67,176.36,176.34,8.42151313]
[1752748028912,0.66,176.39,176.35,8.42151313]
[1752748029109,29.32,176.38,176.36,8.42151313]
[1752748029318,29.32,176.38,176.35,8.42151313]
[1752748029623,29.98,176.38,176.35,8.42151313]
[1752748029926,29.32,176.38,176.35,8.42151313]
[1752748030912,29.32,176.38,176.36,14.09173313]
[1752748032516,29.98,176.38,176.35,14.0919556]
[1752748033431,0.66,176.37,176.35,14.0919556]
[1752748033634,29.32,176.38,176.36,8.42151313]
[1752748033814,29.32,176.38,176.35,5.67044247]
[1752748033815,29.32,176.4,176.37,8.42151313]
[1752748034015,29.32,176.4,176.39,8.42151313]
[1752748035016,29.98,176.4,176.38,8.42151313]
[1752748035630,29.98,176.4,176.37,14.09120401]
[1752748035931,29.98,176.4,176.38,8.42151313]
[1752748036637,29.98,176.4,176.38,14.09101279]
[1752748037013,0.06,176.43,176.39,9.10151313]
[1752748037221,29.38,176.43,176.42,8.42151313]
[1752748038037,29.38,176.43,176.42,14.0898047]
[1752748038647,29.38,176.43,176.42,5.66829157]
[1752748038934,0.06,176.43,176.42,14.0898047]
[1752748039140,0.06,176.43,176.42,5.66829157]
[1752748039338,0.06,176.43,176.42,14.0898047]
[1752748041144,0.06,176.43,176.42,14.7698047]
[1752748042529,1e-08,176.43,176.42,14.7698047]
[1752748044098,1e-08,176.43,176.42,14.0898047]
[1752748045875,1e-08,176.43,176.42,14.7698047]
[1752748049018,1e-08,176.43,176.42,5.66829157]
[1752748049329,0.66000001,176.43,176.42,10.92096621]
[1752748049807,0.66000001,176.43,176.41,10.9211764]
[1752748050008,0.66,176.42,176.4,10.92159556]
[1752748050192,0.66,176.41,176.4,10.92159556]
[1752748050392,0.66,176.41,176.4,5.66892092]
[1752748050589,1e-08,176.43,176.4,5.66892092]
[1752748050902,0.66,176.42,176.4,5.66892092]
[1752748051222,0.66,176.41,176.4,5.66892092]
[1752748051932,0.66000001,176.43,176.4,10.92159556]
[1752748052215,0.66,176.42,176.4,10.92159556]
[1752748052805,1e-08,176.43,176.41,5.25267464]
[1752748052992,1e-08,176.43,176.42,14.0760074]
[1752748053193,1e-08,176.43,176.42,14.7560074]
[1752748054212,1e-08,176.43,176.42,14.0760074]
[1752748056311,0.66000001,176.43,176.42,14.0760074]
[1752748056843,0.66000001,176.43,176.4,8.40771583]
[1752748057005,0.66000001,176.43,176.39,8.40771583]
[1752748057434,0.66000001,176.43,176.4,8.40771583]
[1752748057713,0.66,176.42,176.4,14.07645454]
[1752748058230,0.66,176.41,176.4,14.07645454]
[1752748058433,0.66,176.41,176.4,5.66873871]
[1752748059240,0.66,176.41,176.4,14.07645454]
[1752748059436,0.66000001,176.43,176.4,14.07645454]
[1752748060117,0.66,176.42,176.4,14.07645454]
[1752748061639,0.66,176.42,176.36,16.39219745]
[1752748061640,0.66,176.42,176.41,8.40771583]
[1752748061843,1e-08,176.43,176.41,8.40771583]
[1752748062143,0.66000001,176.43,176.41,8.40771583]
[1752748062326,0.66,176.42,176.4,8.40771583]
[1752748062525,0.66,176.42,176.38,5.66957704]
[1752748062724,1e-08,176.43,176.38,5.66957704]
[1752748062959,1e-08,176.43,176.39,8.40771583]
[1752748062960,0.66,176.42,176.39,8.40771583]
[1752748063150,0.66,176.41,176.39,8.40771583]
[1752748063349,0.66,176.41,176.38,14.07729287]
[1752748063551,1e-08,176.43,176.38,14.07729287]
[1752748063552,0.66,176.4,176.38,14.07729287]
[1752748063752,0.66000001,176.43,176.39,8.40771583]
[1752748063962,0.66,176.42,176.39,8.40771583]
[1752748064164,0.66,176.41,176.39,8.40771583]
[1752748064971,0.66,176.41,176.4,8.40771583]
[1752748065572,0.66000001,176.43,176.4,14.07658983]
[1752748065878,0.66,176.42,176.4,5.668874]
[1752748066179,0.66000001,176.43,176.41,8.40771583]
[1752748066686,1e-08,176.43,176.41,8.40771583]
[1752748067477,1e-08,176.43,176.42,8.40771583]
[1752748067781,1e-08,176.43,176.42,14.0760074]
[1752748067977,0.66000001,176.43,176.39,8.40771583]
[1752748068171,0.66,176.42,176.39,8.40771583]
[1752748068474,0.66,176.42,176.38,5.66957704]
[1752748068780,9.06771583,176.42,176.37,5.66984245]
[1752748068981,0.66,176.41,176.37,5.66984245]
[1752748069688,29.3,176.4,176.35,14.07794651]
[1752748069892,0.66,176.39,176.35,5.67023068]
[1752748070193,29.3,176.4,176.35,5.67023068]
[1752748070194,0.66,176.38,176.35,14.07794651]
[1752748072167,29.96,176.4,176.35,14.07794651]
[1752748072371,29.96,176.4,176.37,8.40771583]
[1752748072372,29.3,176.4,176.37,8.40771583]
[1752748072588,8.40771583,176.39,176.34,0.67]
[1752748072786,0.66,176.38,176.33,8.43771583]
[1752748073291,8.40771583,176.37,176.33,0.03]
[1752748073588,38.36771583,176.36,176.33,0.03]
[1752748074067,37.70771583,176.36,176.33,0.03]
[1752748074271,0.66,176.35,176.33,0.03]
[1752748074580,29.3,176.36,176.33,8.43771583]
[1752748074785,0.66,176.35,176.33,8.43771583]
[1752748074976,0.66,176.34,176.33,0.03]
[1752748075471,0.66,176.34,176.33,8.43771583]
[1752748076778,0.66,176.34,176.33,0.03]
[1752748077379,29.3,176.36,176.33,0.03]
[1752748077584,29.96,176.36,176.33,0.03]
[1752748077784,0.66,176.35,176.33,0.03]
[1752748079997,0.66,176.35,176.33,5.29154479]
[1752748080870,29.3,176.36,176.33,5.29154479]
[1752748081076,29.3,176.36,176.35,10.93208632]
[1752748081277,29.3,176.39,176.35,10.93208632]
[1752748081478,29.96,176.39,176.36,5.26154479]
[1752748081699,29.3,176.39,176.38,5.26154479]
[1752748081888,29.96,176.39,176.36,5.26154479]
[1752748082086,0.66,176.38,176.36,5.26154479]
[1752748082292,0.66,176.37,176.36,5.26154479]
[1752748082995,0.66,176.37,176.36,10.93176479]
[1752748083716,29.96,176.39,176.36,10.93176479]
[1752748084075,0.66,176.38,176.36,10.93176479]
[1752748084680,0.66,176.37,176.35,5.26154479]
[1752748085018,0.66,176.36,176.33,10.96263418]
[1752748085485,0.66,176.35,176.33,10.96263418]
[1752748086006,0.66,176.37,176.34,5.26154479]
[1752748086896,0.66,176.37,176.33,5.70108939]
[1752748087206,0.67,176.36,176.34,5.26154479]
[1752748087880,0.67,176.35,176.33,0.03]
[1752748088077,35.23154479,176.35,176.33,0.03]
[1752748088280,29.97,176.35,176.33,0.03]
[1752748088607,0.67,176.34,176.33,0.03]
[1752748088815,22.71622876,176.34,176.33,0.03]
[1752748089382,28.38709186,176.34,176.33,0.03]
[1752748090301,23.12554707,176.34,176.33,0.03]
[1752748090607,28.38709186,176.34,176.33,0.03]
[1752748090813,23.12554707,176.34,176.33,0.03]
[1752748090980,28.38709186,176.34,176.33,0.03]
[1752748091182,57.68709186,176.34,176.33,0.03]
[1752748092841,52.42554707,176.34,176.33,0.03]
[1752748093013,57.68709186,176.34,176.33,0.03]
[1752748095520,17.45468397,176.34,176.33,0.03]
[1752748095699,16.78468397,176.34,176.33,0.03]
[1752748095887,5.93154479,176.38,176.33,5.29154479]
[1752748096206,29.3,176.37,176.34,5.26154479]
[1752748096409,29.97,176.37,176.34,5.26154479]
[1752748096787,29.97,176.37,176.33,5.29154479]
[1752748096788,0.67,176.36,176.33,5.29154479]
[1752748096996,0.67,176.35,176.33,5.29154479]
[1752748097307,29.3,176.34,176.33,5.29154479]
[1752748098319,29.3,176.34,176.33,10.9627295]
[1752748100509,29.3,176.34,176.33,5.70118471]
[1752748100708,35.23154479,176.34,176.33,0.03]
[1752748104017,46.75468397,176.34,176.33,0.03]
[1752748104428,52.01622876,176.34,176.33,0.03]
[1752748104714,22.71622876,176.34,176.33,0.03]
[1752748104914,52.01622876,176.34,176.33,0.03]
[1752748105826,57.68709186,176.34,176.33,0.03]
[1752748106329,22.71622876,176.34,176.33,0.03]
[1752748106501,52.01622876,176.34,176.33,0.03]
[1752748106702,46.75468397,176.34,176.33,0.03]
[1752748106897,52.01622876,176.34,176.33,0.03]
[1752748107928,57.68709186,176.34,176.33,0.03]
[1752748109194,46.75468397,176.34,176.33,0.03]
[1752748109716,52.01622876,176.34,176.33,0.03]
[1752748110322,57.68709186,176.34,176.33,0.03]
[1752748111015,52.01622876,176.34,176.33,0.03]
[1752748111219,46.75468397,176.34,176.33,0.03]
[1752748111807,57.68709186,176.34,176.33,0.03]
[1752748113225,52.01622876,176.34,176.33,0.03]
[1752748113808,16.78468397,176.33,176.32,0.03]
[1752748114004,16.78468397,176.29,176.27,0.03]
[1752748114329,26.0,176.3,176.27,0.03]
[1752748114330,46.40468397,176.28,176.27,0.03]
[1752748114628,52.35622876,176.28,176.27,0.03]
[1752748115722,0.67,176.3,176.27,0.03]
[1752748115924,0.67,176.3,176.27,5.29154479]
[1752748115925,26.0,176.28,176.27,5.29154479]
[1752748116126,55.62,176.28,176.27,5.29154479]
[1752748116728,55.62,176.28,176.27,0.03]
[1752748117028,55.62,176.28,176.27,5.29154479]
[1752748118922,55.62,176.28,176.27,0.03]
[1752748119923,78.35622876,176.28,176.27,0.03]
[1752748123535,43.47468397,176.28,176.27,0.03]
[1752748123718,0.69,176.33,176.27,5.96154479]
[1752748124035,29.56,176.32,176.29,5.26154479]
[1752748124536,29.56,176.32,176.28,5.26154479]
[1752748124737,29.56,176.32,176.28,5.93154479]
[1752748125531,30.25,176.32,176.28,5.26154479]
[1752748125937,29.56,176.32,176.3,5.26154479]
[1752748126234,29.56,176.32,176.29,0.67]
[1752748126417,29.56,176.32,176.28,5.26154479]
[1752748126618,29.56,176.32,176.29,5.26154479]
[1752748127035,29.56,176.32,176.3,5.26154479]
[1752748127541,29.56,176.32,176.29,0.67]
[1752748127842,24.99992218,176.35,176.31,5.26154479]
[1752748127843,2.95369342,176.35,176.31,5.26154479]
[1752748128136,29.54,176.34,176.33,5.26154479]
[1752748129624,30.23,176.34,176.29,0.67]
[1752748129834,29.54,176.34,176.33,5.26154479]
[1752748130538,29.54,176.34,176.3,0.67]
[1752748130742,29.54,176.34,176.33,5.26154479]
[1752748132837,29.54,176.34,176.33,5.93154479]
[1752748133248,29.54,176.34,176.33,5.26154479]
[1752748133637,29.54,176.34,176.31,0.67]
[1752748133942,29.54,176.34,176.33,5.26154479]
[1752748134540,30.23,176.34,176.31,5.26154479]
[1752748134739,0.69,176.33,176.31,5.26154479]
[1752748134931,29.48,176.32,176.31,5.26154479]
[1752748135131,29.48,176.32,176.3,5.26154479]
[1752748136837,29.48,176.32,176.31,5.93154479]
[1752748137887,26.0,176.35,176.31,5.93154479]
[1752748138052,16.78468397,176.4,176.34,5.26154479]
[1752748138345,29.46,176.39,176.37,5.26154479]
[1752748138557,29.46,176.39,176.36,5.26154479]
[1752748140249,0.69,176.38,176.32,8.9296]
[1752748140458,29.44,176.37,176.33,5.26154479]
[1752748140757,29.44,176.37,176.34,5.26154479]
[1752748141055,30.13,176.37,176.33,5.93154479]
[1752748141258,30.13,176.37,176.33,5.26154479]
[1752748141837,30.13,176.37,176.34,5.26154479]
[1752748142429,29.44,176.37,176.34,5.26154479]
[1752748143031,30.13,176.37,176.34,5.26154479]
[1752748143960,30.13,176.37,176.35,5.26154479]
[1752748144451,30.13,176.37,176.33,0.67]
[1752748144452,30.13,176.37,176.34,5.26154479]
[1752748144658,29.44,176.37,176.34,5.26154479]
[1752748144850,29.44,176.37,176.33,0.67]
[1752748145048,154.23129427,176.43,176.35,5.26154479]
[1752748145263,0.69000001,176.43,176.39,5.26154479]
[1752748145553,30.09,176.42,176.38,5.26154479]
[1752748145740,0.69,176.41,176.38,5.26154479]
[1752748145948,29.4,176.4,176.38,5.26154479]
[1752748146745,29.4,176.4,176.32,96.3596]
[1752748147040,0.69,176.39,176.35,5.26154479]
[1752748147237,29.38,176.38,176.34,5.26154479]
[1752748147473,30.09,176.38,176.34,5.26154479]
[1752748147672,30.09,176.38,176.35,5.26154479]
[1752748147966,30.09,176.38,176.33,0.67]
[1752748148139,30.09,176.38,176.34,5.26154479]
[1752748148748,30.09,176.38,176.33,5.93154479]
[1752748149263,5.97154479,176.37,176.32,5.26154479]
[1752748149448,0.71,176.36,176.32,5.26154479]
[1752748149644,30.07,176.35,176.32,5.26154479]
[1752748150465,29.36,176.35,176.33,5.94154479]
[1752748151140,29.36,176.35,176.33,0.68]
[1752748151334,29.36,176.35,176.33,5.26154479]
[1752748151641,29.36,176.35,176.34,5.94154479]
[1752748151960,29.36,176.35,176.34,5.26154479]
[1752748152340,29.36,176.35,176.33,5.26154479]
[1752748153361,29.36,176.35,176.3,0.68]
[1752748153566,29.36,176.35,176.33,5.26154479]
[1752748153764,29.36,176.35,176.28,96.1923]
[1752748153765,29.36,176.35,176.34,5.26154479]
[1752748154072,29.32,176.35,176.34,5.94154479]
[1752748154249,29.32,176.36,176.34,5.94154479]
[1752748154451,29.32,176.36,176.35,5.26154479]
[1752748154659,0.71,176.39,176.35,5.26154479]
[1752748154851,30.03,176.38,176.36,5.26154479]
[1752748155954,26.71,176.4,176.37,5.26154479]
[1752748156260,29.32,176.39,176.37,5.94154479]
[1752748156452,29.32,176.39,176.38,5.26154479]
[1752748156769,16.78468398,176.43,176.38,5.26154479]
[1752748156770,1e-08,176.43,176.38,5.94154479]
[1752748156976,29.32000001,176.43,176.42,5.26154479]
[1752748158574,29.32000001,176.43,176.41,5.26154479]
[1752748158948,29.32000001,176.43,176.42,5.26154479]
[1752748160384,29.32000001,176.43,176.42,5.94154479]
[1752748160968,29.32000001,176.43,176.4,0.68]
[1752748161283,0.71,176.42,176.39,5.26154479]
[1752748161486,0.71,176.41,176.38,5.26154479]
[1752748161779,0.71,176.41,176.36,5.26154479]
[1752748161780,30.01,176.4,176.36,5.26154479]
[1752748161976,0.71,176.39,176.36,5.26154479]
[1752748162904,0.71,176.39,176.35,7.6824]
[1752748162905,48.04622876,176.37,176.31,7.9207]
[1752748163085,5.26154479,176.34,176.28,5.26154479]
[1752748163293,30.01,176.33,176.28,5.26154479]
[1752748163448,29.3,176.33,176.28,5.26154479]
[1752748163652,0.71,176.32,176.28,5.26154479]
[1752748164363,0.71,176.34,176.29,5.26154479]
[1752748164569,29.3,176.33,176.3,5.26154479]
[1752748164785,30.01,176.33,176.3,5.26154479]
[1752748165390,30.01,176.33,176.27,8.6755]
[1752748165690,30.01,176.33,176.29,5.26154479]
[1752748168295,0.71,176.32,176.28,5.29154479]
[1752748169165,5.97154479,176.31,176.28,0.03]
[1752748169396,29.3,176.3,176.28,0.03]
[1752748169691,30.01,176.3,176.28,0.03]
[1752748170294,0.71,176.29,176.28,0.03]
[1752748170686,29.3,176.3,176.28,0.03]
[1752748170989,5.97154479,176.31,176.28,0.03]
[1752748171195,30.01,176.3,176.28,0.03]
[1752748171374,29.3,176.3,176.28,0.03]
[1752748172706,29.32,176.29,176.28,5.97154479]
[1752748173583,29.32,176.29,176.28,0.03]
[1752748177099,29.32,176.29,176.28,0.72]
[1752748177284,29.32,176.29,176.28,5.98154479]
[1752748177686,29.32,176.29,176.28,5.29154479]
[1752748178006,29.32,176.29,176.28,0.03]
[1752748178582,29.32,176.29,176.28,5.98154479]
[1752748179001,29.32,176.29,176.28,5.29154479]
[1752748179788,29.32,176.3,176.28,5.29154479]
[1752748180602,29.32,176.3,176.28,0.03]
[1752748180797,29.32,176.3,176.28,5.29154479]
[1752748181204,29.32,176.3,176.29,5.95154479]
[1752748181505,29.32,176.3,176.29,5.26154479]
[1752748181696,29.32,176.31,176.28,0.03]
[1752748181901,29.32,176.31,176.29,5.26154479]
[1752748182112,29.99,176.31,176.29,5.26154479]
[1752748182702,29.99,176.31,176.28,0.03]
[1752748182926,29.99,176.31,176.29,5.26154479]
[1752748183098,29.99,176.31,176.28,5.29154479]
[1752748185609,29.99,176.31,176.29,5.26154479]
[1752748187825,29.32,176.31,176.29,5.26154479]
[1752748189126,29.32,176.31,176.3,5.67214974]
[1752748189501,29.99,176.31,176.3,5.67214974]
[1752748191023,29.99,176.31,176.28,5.70279328]
[1752748191326,29.99,176.31,176.29,5.26154479]
[1752748191711,29.99,176.31,176.28,10.96433807]
[1752748192721,0.67,176.3,176.28,10.96433807]
[1752748193305,29.32,176.31,176.28,10.96433807]
[1752748193628,29.99,176.31,176.28,10.96433807]
[1752748194129,29.32,176.31,176.29,5.26154479]
[1752748194638,29.99,176.31,176.28,10.96433807]
[1752748195931,0.67,176.3,176.28,0.03]
[1752748196936,0.67,176.29,176.28,5.70279328]
[1752748197704,5.93154479,176.29,176.28,0.03]
[1752748197903,0.67,176.29,176.28,0.03]
[1752748198528,5.93154479,176.29,176.28,0.03]
[1752748199334,0.67,176.29,176.28,0.03]
[1752748199634,5.93154479,176.29,176.28,0.03]
[1752748200439,0.67,176.29,176.28,0.03]
[1752748200813,29.97,176.29,176.28,0.03]